bitfinex/quotes_SOLUSD_20251118
["timestamp","ask_amount","ask_price","bid_price","bid_amount"]
[1763488239671,15.64129135,140.58,140.54,0.2]
[1763488240017,0.72,140.57,140.54,0.2]
[1763488241113,23.97342366,140.55,140.54,0.2]
[1763488241279,18.12096,140.55,140.54,0.2]
[1763488241486,18.84096,140.55,140.54,0.2]
[1763488241809,24.69342366,140.55,140.54,0.2]
[1763488242581,18.84096,140.55,140.54,0.2]
[1763488242784,9.78882769,140.55,140.54,0.2]
[1763488243090,10.50882769,140.55,140.54,0.2]
[1763488245997,20.31373631,140.55,140.54,0.2]
[1763488246400,38.43469631,140.55,140.54,0.2]
[1763488246609,25.05045953,140.55,140.52,0.2]
[1763488246787,10.76048085,140.6,140.52,0.2]
[1763488246788,37.71469631,140.53,140.52,0.2]
[1763488246990,46.69103047,140.53,140.52,0.2]
[1763488247192,42.67469631,140.53,140.52,0.2]
[1763488248090,47.40282005,140.53,140.52,0.2]
[1763488248286,42.67469631,140.53,140.52,0.2]
[1763488249703,47.39468987,140.53,140.52,0.2]
[1763488250544,14.74882769,140.53,140.52,0.2]
[1763488250821,20.31373631,140.53,140.52,0.2]
[1763488251003,38.43469631,140.53,140.52,0.2]
[1763488253319,37.71469631,140.53,140.52,0.2]
[1763488254004,38.43469631,140.53,140.52,0.2]
[1763488256245,27.90978769,140.53,140.52,0.2]
[1763488256409,28.62978769,140.53,140.52,0.2]
[1763488256610,38.43469631,140.53,140.52,0.2]
[1763488259412,27.90978769,140.53,140.52,0.2]
[1763488260342,9.78882769,140.58,140.52,10.66490862]
[1763488260510,24.55373631,140.58,140.53,9.80490862]
[1763488260833,0.72,140.57,140.54,0.66]
[1763488261824,9.78882769,140.57,140.54,0.66]
[1763488262225,10.50882769,140.57,140.53,0.66]
[1763488263161,18.12096,140.58,140.54,9.80490862]
[1763488263329,9.78882769,140.61,140.56,9.80490862]
[1763488263643,14.04490862,140.66,140.6,9.80490862]
[1763488263847,19.59373631,140.64,140.55,18.12096]
[1763488264133,41.95469631,140.64,140.58,9.80490862]
[1763488264362,32.14978769,140.64,140.6,9.80490862]
[1763488264547,22.36096,140.64,140.6,9.80490862]
[1763488264746,18.12096,140.64,140.61,10.46490862]
[1763488265051,3.72136603,140.67,140.63,9.80490862]
[1763488265223,3.72136603,140.67,140.65,9.80490862]
[1763488265549,3.72136603,140.67,140.66,9.80490862]
[1763488265708,3.72136603,140.67,140.66,10.46490862]
[1763488268839,2.40136603,140.67,140.66,10.46490862]
[1763488269056,27.90978769,140.74,140.66,10.46490862]
[1763488269256,27.90978769,140.74,140.7,9.80490862]
[1763488269459,28.62978769,140.74,140.7,9.80490862]
[1763488269838,10.52490862,140.73,140.69,4.24]
[1763488270038,9.78882769,140.72,140.68,9.80490862]
[1763488270363,20.31373631,140.72,140.67,14.04490862]
[1763488270558,0.72,140.71,140.67,14.04490862]
[1763488271360,9.78882769,140.73,140.68,9.80490862]
[1763488271530,0.72,140.72,140.68,9.80490862]
[1763488271933,0.72,140.72,140.67,4.24]
[1763488272152,0.72,140.72,140.68,9.80490862]
[1763488272471,9.78882769,140.73,140.69,9.80490862]
[1763488272679,10.49882769,140.73,140.69,9.80490862]
[1763488272963,0.71,140.73,140.69,9.80490862]
[1763488273159,18.12096,140.74,140.7,9.80490862]
[1763488273530,18.12096,140.74,140.71,9.80490862]
[1763488273737,18.83096,140.74,140.7,9.80490862]
[1763488274356,0.71,140.73,140.7,4.24]
[1763488275053,19.59373631,140.72,140.64,18.12096]
[1763488275249,19.59373631,140.72,140.66,9.80490862]
[1763488275450,0.71,140.71,140.66,9.80490862]
[1763488275652,0.71,140.71,140.67,14.04490862]
[1763488276455,0.71,140.71,140.67,4.24]
[1763488276870,0.71,140.71,140.67,14.04490862]
[1763488277865,10.51490862,140.71,140.66,9.80490862]
[1763488278075,10.51490862,140.71,140.65,9.80490862]
[1763488278076,19.59373631,140.7,140.65,9.80490862]
[1763488278380,9.78882769,140.66,140.61,9.80490862]
[1763488278568,9.78882769,140.66,140.61,14.04490862]
[1763488278761,0.71,140.65,140.61,14.04490862]
[1763488279081,10.51490862,140.65,140.61,4.24]
[1763488279451,0.71,140.65,140.61,4.24]
[1763488279770,0.71,140.64,140.61,4.24]
[1763488280571,10.51490862,140.64,140.61,4.24]
[1763488280761,0.71,140.64,140.61,4.24]
[1763488280955,9.80490862,140.65,140.6,9.80490862]
[1763488281160,0.71,140.64,140.6,14.04490862]
[1763488281761,0.71,140.64,140.6,9.80490862]
[1763488281967,0.71,140.64,140.59,14.04490862]
[1763488283259,19.59373631,140.63,140.59,4.24]
[1763488283464,9.80490862,140.62,140.56,9.80490862]
[1763488283663,10.51490862,140.62,140.56,9.80490862]
[1763488283977,0.71,140.61,140.57,4.24]
[1763488284681,10.51490862,140.61,140.57,4.24]
[1763488285176,0.71,140.6,140.57,4.24]
[1763488286187,19.59373631,140.59,140.53,9.80490862]
[1763488286362,19.59373631,140.59,140.53,14.04490862]
[1763488286556,0.71,140.58,140.53,14.04490862]
[1763488286980,18.12096,140.62,140.54,9.80490862]
[1763488287156,18.12096,140.62,140.53,22.36096]
[1763488287157,0.71,140.61,140.53,22.36096]
[1763488287355,0.71,140.61,140.57,9.80490862]
[1763488287794,0.71,140.61,140.57,14.04490862]
[1763488288169,0.71,140.61,140.57,4.24]
[1763488288358,10.51490862,140.61,140.57,4.24]
[1763488288680,10.51490862,140.61,140.56,4.24]
[1763488288869,0.71,140.6,140.55,9.80490862]
[1763488289071,0.71,140.6,140.56,4.24]
[1763488289270,0.71,140.6,140.55,4.24]
[1763488289271,19.59373631,140.59,140.55,4.24]
[1763488289784,0.71,140.58,140.54,9.80490862]
[1763488290171,0.71,140.58,140.53,14.04490862]
[1763488291470,18.83096,140.62,140.56,9.80490862]
[1763488291674,10.49882769,140.62,140.57,9.80490862]
[1763488291896,0.71,140.62,140.58,9.80490862]
[1763488292277,0.71,140.62,140.57,9.80490862]
[1763488292996,19.59373631,140.61,140.52,0.2]
[1763488293168,19.59373631,140.61,140.53,14.04490862]
[1763488293169,9.80490862,140.59,140.53,14.04490862]
[1763488293369,0.71,140.6,140.55,9.80490862]
[1763488293580,0.71,140.6,140.56,9.80490862]
[1763488293791,14.04490862,140.7,140.58,9.80490862]
[1763488293792,0.71,140.65,140.58,9.80490862]
[1763488294090,0.71,140.65,140.54,18.12096]
[1763488294091,9.78882769,140.64,140.54,18.12096]
[1763488294295,9.80490862,140.59,140.53,4.24]
[1763488294595,9.78882769,140.6,140.53,4.24]
[1763488294790,0.71,140.59,140.54,9.80490862]
[1763488295490,10.51490862,140.59,140.53,14.04490862]
[1763488295883,10.51490862,140.59,140.54,4.24]
[1763488296273,9.80490862,140.59,140.54,4.24]
[1763488296473,0.71,140.59,140.54,14.04490862]
[1763488296876,0.71,140.59,140.54,4.24]
[1763488297293,0.71,140.59,140.54,14.04490862]
[1763488297496,0.71,140.59,140.54,4.24]
[1763488297997,10.51490862,140.59,140.54,4.24]
[1763488298178,0.71,140.58,140.54,4.24]
[1763488299000,9.80490862,140.59,140.54,4.24]
[1763488299198,0.71,140.6,140.56,9.80490862]
[1763488299581,18.12096,140.61,140.56,9.80490862]
[1763488299996,0.71,140.6,140.55,9.80490862]
[1763488300187,0.71,140.6,140.56,9.80490862]
[1763488300585,20.30373631,140.62,140.56,9.80490862]
[1763488300898,20.30373631,140.62,140.57,4.24]
[1763488300899,0.71,140.61,140.57,4.24]
[1763488301088,0.71,140.61,140.57,14.04490862]
[1763488301700,0.71,140.61,140.57,4.24]
[1763488303588,10.51490862,140.61,140.57,4.24]
[1763488303988,0.72,140.6,140.57,4.24]
[1763488304374,9.78882769,140.61,140.57,4.24]
[1763488304576,10.50882769,140.61,140.57,4.24]
[1763488304790,0.72,140.6,140.57,4.24]
[1763488305796,18.12096,140.63,140.57,4.24]
[1763488306098,0.72,140.64,140.6,5.86155416]
[1763488306305,0.72,140.63,140.58,5.86155416]
[1763488306518,5.86155416,140.61,140.56,4.24]
[1763488307008,0.72,140.6,140.56,5.86155416]
[1763488307205,0.72,140.6,140.57,4.24]
[1763488311898,12.04004781,140.62,140.57,4.24]
[1763488312099,0.72,140.6,140.57,4.24]
[1763488312486,10.50882769,140.62,140.57,6.49122012]
[1763488312689,0.72,140.62,140.58,2.25122012]
[1763488313186,0.72,140.63,140.58,2.25122012]
[1763488313510,0.72,140.62,140.58,2.25122012]
[1763488313808,18.84096,140.64,140.59,2.25122012]
[1763488313981,18.84096,140.64,140.6,2.25122012]
[1763488314200,18.84096,140.64,140.59,2.25122012]
[1763488314622,0.72,140.63,140.59,2.25122012]
[1763488314811,0.72,140.63,140.57,4.24]
[1763488315010,0.72,140.63,140.59,2.25122012]
[1763488315618,0.72,140.63,140.58,2.25122012]
[1763488316225,10.50882769,140.63,140.57,2.25122012]
[1763488316631,10.50882769,140.63,140.54,79.92096]
[1763488316632,0.72,140.62,140.54,79.92096]
[1763488316853,2.97122012,140.62,140.56,2.25122012]
[1763488317340,0.72,140.61,140.56,2.25122012]
[1763488317511,0.72,140.61,140.57,2.25122012]
[1763488318227,0.72,140.61,140.56,2.25122012]
[1763488319231,0.72,140.61,140.55,6.49122012]
[1763488320118,0.72,140.61,140.56,2.25122012]
[1763488320806,0.72,140.61,140.56,5.8615878]
[1763488321808,6.5815878,140.61,140.55,4.24]
[1763488322011,5.8615878,140.57,140.52,0.2]
[1763488322229,15.65041549,140.58,140.52,0.2]
[1763488322541,0.72,140.57,140.52,6.0615878]
[1763488322744,0.72,140.61,140.56,5.8615878]
[1763488322906,0.72,140.61,140.57,5.8615878]
[1763488323103,13.88252436,140.69,140.55,4.24]
[1763488323104,0.72,140.62,140.59,5.8615878]
[1763488323320,0.72,140.62,140.58,5.8615878]
[1763488323733,0.72,140.62,140.59,5.8615878]
[1763488324312,0.72,140.62,140.58,5.8615878]
[1763488324517,6.5815878,140.62,140.55,4.24]
[1763488324715,6.5815878,140.62,140.55,10.1015878]
[1763488324928,0.72,140.61,140.56,5.8615878]
[1763488325229,0.72,140.61,140.57,5.8615878]
[1763488325435,0.72,140.61,140.56,5.8615878]
[1763488326135,0.72,140.61,140.58,5.8615878]
[1763488326310,15.65041549,140.64,140.58,5.8615878]
[1763488326509,0.72,140.62,140.58,5.8615878]
[1763488327125,0.72,140.64,140.59,5.8615878]
[1763488327938,4.76675902,140.63,140.59,5.8615878]
[1763488328308,5.48675902,140.63,140.59,5.8615878]
[1763488328640,0.72,140.62,140.59,5.8615878]
[1763488328939,0.72,140.62,140.59,10.1015878]
[1763488329115,0.72,140.62,140.57,5.8615878]
[1763488329315,0.72,140.62,140.57,4.24]
[1763488329316,6.5815878,140.62,140.57,4.24]
[1763488329719,6.5815878,140.62,140.52,0.2]
[1763488329720,5.8615878,140.58,140.52,6.0615878]
[1763488330042,5.8615878,140.56,140.52,0.2]
[1763488330543,0.72,140.55,140.52,0.2]
[1763488330842,6.5815878,140.55,140.52,0.2]
[1763488331041,15.65041549,140.54,140.52,0.2]
[1763488331221,15.65041549,140.53,140.52,0.2]
[1763488331424,16.37041549,140.53,140.52,0.2]
[1763488331643,9.78882769,140.52,140.5,0.2]
[1763488331811,16.37041549,140.52,140.5,0.2]
[1763488332011,0.72,140.51,140.5,0.2]
[1763488332230,6.5615878,140.55,140.5,0.2]
[1763488332436,16.35041549,140.55,140.5,0.2]
[1763488332706,0.7,140.55,140.5,6.2715878]
[1763488332911,0.7,140.54,140.5,0.2]
[1763488333722,5.8615878,140.53,140.5,0.2]
[1763488333915,9.78882769,140.53,140.5,0.2]
[1763488334235,0.7,140.52,140.5,0.2]
[1763488334422,16.35041549,140.54,140.5,0.2]
[1763488334622,0.7,140.53,140.5,0.2]
[1763488334817,5.8615878,140.54,140.5,0.2]
[1763488335043,0.7,140.54,140.5,0.2]
[1763488335413,6.5615878,140.54,140.5,0.2]
[1763488335723,0.7,140.54,140.5,0.2]
[1763488335927,0.7,140.53,140.5,0.2]
[1763488336234,5.8615878,140.52,140.5,0.2]
[1763488336443,6.5615878,140.53,140.5,0.2]
[1763488336645,0.7,140.53,140.5,0.2]
[1763488336845,6.5615878,140.54,140.5,0.2]
[1763488337146,0.7,140.53,140.5,0.2]
[1763488338231,5.8615878,140.51,140.5,0.2]
[1763488338627,6.5615878,140.51,140.5,0.2]
[1763488339032,0.7,140.53,140.5,0.2]
[1763488339238,0.7,140.52,140.5,0.2]
[1763488341646,0.7,140.54,140.5,0.2]
[1763488342358,0.7,140.57,140.51,6.4934927]
[1763488342539,0.7,140.58,140.52,2.4634927]
[1763488342740,0.7,140.58,140.53,2.2534927]
[1763488342949,0.7,140.58,140.53,6.4934927]
[1763488343276,4.24,140.61,140.55,2.2534927]
[1763488343277,0.7,140.61,140.55,2.2534927]
[1763488343433,0.7,140.61,140.56,2.2534927]
[1763488343762,18.82096,140.61,140.56,2.2534927]
[1763488344131,0.7,140.6,140.56,2.2534927]
[1763488344564,0.7,140.6,140.55,2.2534927]
[1763488344742,2.2534927,140.59,140.53,4.24]
[1763488344947,5.86442681,140.58,140.53,4.24]
[1763488345148,0.7,140.57,140.53,4.24]
[1763488345662,6.56442681,140.57,140.53,4.24]
[1763488346173,0.7,140.56,140.53,4.24]
[1763488346653,6.56442681,140.56,140.53,4.24]
[1763488347036,0.7,140.55,140.5,6.06442681]
[1763488347849,23.98538681,140.57,140.51,5.86442681]
[1763488348039,24.68538681,140.57,140.51,5.86442681]
[1763488348240,18.82096,140.57,140.52,5.86442681]
[1763488348669,5.86442681,140.58,140.52,5.86442681]
[1763488348964,0.7,140.59,140.54,5.86442681]
[1763488349147,0.7,140.59,140.54,10.10442681]
[1763488349350,0.7,140.59,140.54,10.31442681]
[1763488349766,0.7,140.59,140.54,10.10442681]
[1763488349968,0.7,140.59,140.54,10.31442681]
[1763488350262,0.7,140.59,140.55,5.86442681]
[1763488350650,0.7,140.59,140.54,10.31442681]
[1763488351880,0.7,140.59,140.54,10.10442681]
[1763488352075,16.3532545,140.59,140.54,4.24]
[1763488352465,0.7,140.58,140.54,4.24]
[1763488353075,10.80442681,140.62,140.56,5.86442681]
[1763488353286,4.94,140.62,140.57,5.86442681]
[1763488353486,0.7,140.62,140.57,5.86442681]
[1763488353777,0.7,140.61,140.57,5.86442681]
[1763488353976,0.7,140.61,140.56,5.86442681]
[1763488354177,16.3532545,140.61,140.55,5.86442681]
[1763488354396,6.56442681,140.6,140.54,10.10442681]
[1763488355081,6.56442681,140.59,140.54,4.24]
[1763488355485,0.7,140.58,140.54,4.24]
[1763488356695,0.7,140.58,140.54,10.10442681]
[1763488357497,0.7,140.58,140.54,4.24]
[1763488358861,6.56442681,140.58,140.54,4.24]
[1763488359383,0.7,140.57,140.54,4.24]
[1763488362074,0.7,140.57,140.53,4.24]
[1763488362282,6.56442681,140.57,140.53,4.24]
[1763488362768,0.7,140.56,140.53,4.24]
[1763488363796,0.7,140.56,140.52,4.24]
[1763488365064,6.56442681,140.56,140.52,4.24]
[1763488365258,0.7,140.55,140.52,4.24]
[1763488366079,5.86442681,140.58,140.52,10.10442681]
[1763488366274,0.7,140.55,140.52,10.10442681]
[1763488366477,0.7,140.57,140.53,5.86442681]
[1763488366772,0.7,140.57,140.53,9.80135748]
[1763488366975,0.7,140.57,140.52,14.04135748]
[1763488367174,0.7,140.57,140.53,9.80135748]
[1763488367376,0.7,140.59,140.54,9.80135748]
[1763488367575,0.7,140.58,140.54,9.80135748]
[1763488369795,0.7,140.58,140.53,10.01135748]
[1763488370366,0.7,140.58,140.54,9.80135748]
[1763488371192,0.7,140.58,140.53,10.01135748]
[1763488371562,0.7,140.58,140.52,14.04135748]
[1763488371998,0.7,140.58,140.52,14.25135748]
[1763488372499,9.80135748,140.57,140.5,0.2]
[1763488372797,9.80135748,140.57,140.51,14.04135748]
[1763488372971,0.7,140.56,140.51,14.04135748]
[1763488373173,0.7,140.56,140.52,9.80135748]
[1763488374384,0.7,140.56,140.51,14.04135748]
[1763488374979,0.7,140.56,140.51,14.25135748]
[1763488376799,10.50135748,140.56,140.51,4.24]
[1763488377177,0.7,140.55,140.51,4.24]
[1763488380601,9.80135748,140.6,140.54,9.80135748]
[1763488380787,0.7,140.59,140.55,4.24]
[1763488380976,0.7,140.59,140.55,14.04135748]
[1763488381172,10.50135748,140.59,140.55,4.24]
[1763488381611,0.7,140.58,140.55,4.24]
[1763488381812,10.50135748,140.58,140.55,4.24]
[1763488382288,0.7,140.57,140.55,4.24]
[1763488382485,10.50135748,140.57,140.55,4.24]
[1763488382695,0.7,140.57,140.55,4.24]
[1763488382885,10.50135748,140.56,140.5,10.00135748]
[1763488383087,10.50135748,140.56,140.51,4.24]
[1763488383306,0.7,140.55,140.51,4.24]
[1763488383611,18.82096,140.57,140.52,10.01135748]
[1763488383811,9.80135748,140.56,140.51,4.24]
[1763488384012,27.92231748,140.57,140.51,14.25135748]
[1763488384192,0.7,140.56,140.51,14.25135748]
[1763488384796,0.7,140.56,140.51,14.04135748]
[1763488385689,0.7,140.56,140.51,14.25135748]
[1763488385906,0.7,140.56,140.51,14.04135748]
[1763488386221,0.7,140.58,140.53,9.80135748]
[1763488386510,0.7,140.58,140.54,14.04135748]
[1763488386701,0.7,140.58,140.54,4.24]
[1763488387917,10.50135748,140.58,140.54,4.24]
[1763488388090,9.80135748,140.57,140.55,4.24]
[1763488388290,10.50135748,140.57,140.55,4.24]
[1763488388505,0.7,140.56,140.55,4.24]
[1763488389331,4.7711105,140.58,140.55,4.24]
[1763488389524,4.77211263,140.61,140.57,3.51936937]
[1763488389724,0.7,140.61,140.58,4.24]
[1763488390017,0.7,140.6,140.58,4.24]
[1763488390223,15.26094032,140.62,140.58,4.24]
[1763488390416,0.7,140.61,140.58,4.24]
[1763488391820,0.7,140.63,140.59,0.21]
[1763488392028,9.78882769,140.65,140.6,3.51936937]
[1763488392226,0.68,140.63,140.59,3.51936937]
[1763488392431,4.19936937,140.63,140.58,4.24]
[1763488392828,0.68,140.62,140.58,4.24]
[1763488393125,0.68,140.62,140.58,7.75936937]
[1763488393521,0.68,140.62,140.58,4.24]
[1763488394031,4.19936937,140.62,140.58,4.24]
[1763488394430,0.68,140.61,140.58,4.24]
[1763488395210,13.30819706,140.63,140.58,4.24]
[1763488395440,0.68,140.62,140.58,7.75936937]
[1763488395634,0.68,140.62,140.58,7.96936937]
[1763488395931,0.68,140.64,140.59,3.72936937]
[1763488396138,0.68,140.64,140.59,3.51936937]
[1763488397518,0.68,140.67,140.6,0.21]
[1763488397717,0.68,140.67,140.61,3.51936937]
[1763488398018,0.68,140.67,140.6,0.21]
[1763488398212,0.68,140.67,140.61,3.51936937]
[1763488398440,4.19936937,140.67,140.61,3.51936937]
[1763488398656,4.19936937,140.67,140.6,3.72936937]
[1763488398951,10.47085278,140.66,140.6,10.00085278]
[1763488399148,4.77108895,140.67,140.59,18.12096]
[1763488399353,0.68,140.67,140.62,9.79085278]
[1763488399555,0.68,140.66,140.62,4.24]
[1763488400823,9.79085278,140.65,140.59,14.03085278]
[1763488401026,9.79085278,140.65,140.59,4.24]
[1763488401355,0.69,140.64,140.6,9.79085278]
[1763488401651,0.69,140.65,140.61,9.79085278]
[1763488401857,9.78882769,140.67,140.61,9.79085278]
[1763488402061,0.69,140.66,140.61,9.79085278]
[1763488402270,10.48085278,140.66,140.6,9.79085278]
[1763488402559,9.79085278,140.65,140.59,14.03085278]
[1763488402724,0.69,140.65,140.59,14.03085278]
[1763488402926,0.69,140.64,140.59,14.03085278]
[1763488403448,0.69,140.64,140.59,14.24085278]
[1763488405871,9.79085278,140.63,140.59,4.24]
[1763488406454,9.79085278,140.61,140.56,4.24]
[1763488407053,0.69,140.6,140.56,4.24]
[1763488407230,10.48085278,140.6,140.55,4.24]
[1763488407653,0.69,140.59,140.55,4.24]
[1763488410348,9.79085278,140.61,140.55,14.24085278]
[1763488410543,0.69,140.59,140.55,14.24085278]
[1763488410744,0.69,140.59,140.55,4.45]
[1763488410942,0.69,140.59,140.55,4.24]
[1763488411135,27.91181278,140.62,140.55,14.24085278]
[1763488411333,27.91181278,140.62,140.56,9.79085278]
[1763488411334,0.69,140.6,140.56,9.79085278]
[1763488411536,0.69,140.6,140.55,14.24085278]
[1763488412356,0.69,140.6,140.55,4.45]
[1763488412550,0.69,140.6,140.55,4.24]
[1763488412755,0.69,140.6,140.55,14.03085278]
[1763488413264,0.69,140.6,140.55,14.24085278]
[1763488415561,0.69,140.6,140.55,4.45]
[1763488415862,10.48085278,140.6,140.55,4.45]
[1763488416042,0.69,140.6,140.55,4.45]
[1763488416242,10.48085278,140.6,140.55,4.24]
[1763488416443,10.48085278,140.6,140.55,4.45]
[1763488416653,0.69,140.59,140.55,4.45]
[1763488416851,0.69,140.61,140.56,0.21]
[1763488417055,0.69,140.6,140.55,14.03085278]
[1763488417754,0.69,140.6,140.55,4.24]
[1763488418066,0.69,140.6,140.55,4.45]
[1763488419582,0.69,140.6,140.56,3.72750954]
[1763488419741,0.69,140.62,140.57,3.72750954]
[1763488420252,0.69,140.62,140.58,4.24]
[1763488420871,0.69,140.62,140.58,7.75750954]
[1763488421373,3.51750954,140.64,140.58,7.75750954]
[1763488421552,0.69,140.63,140.58,7.96750954]
[1763488421872,0.69,140.66,140.6,3.51750954]
[1763488422072,0.69,140.66,140.61,3.51750954]
[1763488422371,0.69,140.66,140.61,3.72750954]
[1763488422770,0.69,140.66,140.62,7.96750954]
[1763488422994,0.72,140.68,140.64,3.51750954]
[1763488424159,0.72,140.68,140.63,3.51750954]
[1763488424766,0.72,140.68,140.63,3.72750954]
[1763488425074,0.72,140.68,140.64,3.51750954]
[1763488425577,0.72,140.68,140.63,3.72750954]
[1763488425754,22.36096,140.71,140.64,3.51750954]
[1763488426068,0.72,140.71,140.64,0.21]
[1763488426276,0.72,140.71,140.67,3.51750954]
[1763488426881,0.72,140.71,140.67,2.24725929]
[1763488427985,0.72,140.71,140.66,6.48725929]
[1763488428202,0.72,140.71,140.66,4.24]
[1763488428384,2.96725929,140.71,140.66,4.24]
[1763488428901,0.72,140.7,140.66,4.24]
[1763488430689,0.72,140.7,140.65,2.24725929]
[1763488430898,0.72,140.7,140.65,6.48725929]
[1763488431795,2.96725929,140.7,140.65,4.24]
[1763488432178,2.24725929,140.68,140.63,4.24]
[1763488432596,0.72,140.67,140.63,4.24]
[1763488434799,0.72,140.67,140.61,20.36821929]
[1763488434980,0.72,140.67,140.6,4.45]
[1763488434981,2.24725929,140.66,140.6,4.24]
[1763488435491,0.72,140.65,140.6,6.48725929]
[1763488435701,0.72,140.67,140.61,2.45725929]
[1763488435900,2.96725929,140.68,140.61,2.45725929]
[1763488436086,0.72,140.67,140.61,2.45725929]
[1763488436693,2.96725929,140.67,140.6,4.24]
[1763488436878,2.96725929,140.67,140.61,2.24725929]
[1763488437090,0.72,140.66,140.61,2.24725929]
[1763488438304,0.72,140.66,140.6,6.48725929]
[1763488438479,2.24725929,140.65,140.6,4.24]
[1763488438887,0.72,140.64,140.6,4.24]
[1763488439301,2.96725929,140.64,140.6,4.24]
[1763488439787,0.72,140.63,140.6,4.24]
[1763488439985,2.96725929,140.63,140.57,2.24725929]
[1763488440299,2.96725929,140.63,140.57,6.48725929]
[1763488440508,0.72,140.62,140.57,6.69725929]
[1763488440802,0.72,140.64,140.6,2.24725929]
[1763488441676,0.72,140.64,140.59,2.24725929]
[1763488441887,0.72,140.65,140.6,2.24725929]
[1763488442120,0.72,140.65,140.58,0.21]
[1763488442290,0.72,140.65,140.6,2.24725929]
[1763488442904,2.24725929,140.63,140.56,18.12096]
[1763488443117,2.24725929,140.63,140.56,2.45725929]
[1763488443318,0.72,140.64,140.59,2.24725929]
[1763488444200,0.72,140.64,140.59,2.45725929]
[1763488444798,0.72,140.64,140.6,2.24725929]
[1763488445097,0.72,140.65,140.6,2.24725929]
[1763488445300,2.96725929,140.66,140.6,2.24725929]
[1763488445716,0.72,140.65,140.6,2.24725929]
[1763488446019,2.96725929,140.65,140.58,6.69725929]
[1763488446623,0.72,140.64,140.58,6.69725929]
[1763488447220,0.72,140.64,140.58,4.24]
[1763488447426,2.96725929,140.64,140.58,4.24]
[1763488447924,0.72,140.63,140.58,4.24]
[1763488449840,2.96725929,140.63,140.58,4.24]
[1763488450329,0.72,140.62,140.58,4.24]
[1763488451109,2.96725929,140.62,140.58,4.24]
[1763488451316,2.24725929,140.61,140.58,4.24]
[1763488451520,2.24725929,140.6,140.54,4.24]
[1763488451710,2.96725929,140.6,140.54,4.24]
[1763488451910,0.72,140.59,140.54,6.48725929]
[1763488452332,0.72,140.59,140.54,6.69725929]
[1763488453336,0.72,140.59,140.54,0.21]
[1763488453638,0.72,140.59,140.54,4.45]
[1763488454133,2.24725929,140.58,140.5,2.44725929]
[1763488454334,9.78882769,140.58,140.5,0.2]
[1763488454637,2.95725929,140.57,140.5,2.44725929]
[1763488454839,2.95725929,140.57,140.51,2.45725929]
[1763488455145,0.71,140.56,140.51,2.45725929]
[1763488455324,0.71,140.56,140.51,2.24725929]
[1763488455830,0.71,140.56,140.51,2.45725929]
[1763488456617,0.71,140.56,140.51,0.21]
[1763488456816,18.12096,140.57,140.51,0.21]
[1763488457018,0.71,140.58,140.53,2.24725929]
[1763488457425,0.71,140.58,140.53,2.45725929]
[1763488457618,2.95725929,140.58,140.53,0.21]
[1763488457839,0.71,140.58,140.53,0.21]
[1763488458052,0.71,140.58,140.53,2.45725929]
[1763488458225,0.71,140.58,140.53,0.21]
[1763488458424,0.71,140.58,140.54,0.21]
[1763488458628,0.71,140.58,140.52,22.57096]
[1763488459136,0.71,140.58,140.52,18.12096]
[1763488459339,2.24725929,140.57,140.53,4.24]
[1763488459518,2.24725929,140.56,140.53,4.24]
[1763488459718,2.95725929,140.57,140.53,4.24]
[1763488459946,0.71,140.56,140.53,4.24]